[Event "Late-Titled-Tuesday-Blitz-May-07-2024"]
[Site "Chess.com"]
[Date "2024.05.07"]
[Round "4"]
[White "McCarthyStone"]
[Black "1800_strength"]
[Result "0-1"]
[WhiteElo "2439"]
[BlackElo "2783"]
[TimeControl "180+1"]
[EndTime "14:39:04 PDT"]
[Termination "1800_strength won by checkmate"]

1. b3 {[%clk 0:03:00.9]} 1... a5 {[%clk 0:03:00.9]} 2. Bb2 {[%clk 0:03:01.8]}
2... Ra6 {[%clk 0:03:01.8]} 3. e3 {[%clk 0:03:01.6]} 3... b6 {[%clk 0:02:54.6]}
4. Bxa6 {[%clk 0:03:01.1]} 4... Nxa6 {[%clk 0:02:55.5]} 5. d3 {[%clk 0:03:01.7]}
5... Bb7 {[%clk 0:02:56.2]} 6. Nf3 {[%clk 0:03:01.8]} 6... e6 {[%clk 0:02:56.5]}
7. Nbd2 {[%clk 0:03:01.2]} 7... Nf6 {[%clk 0:02:56.1]} 8. e4 {[%clk 0:03:00.3]}
8... Be7 {[%clk 0:02:51.1]} 9. O-O {[%clk 0:02:56.5]} 9... O-O {[%clk
0:02:51.4]} 10. a3 {[%clk 0:02:54.5]} 10... d6 {[%clk 0:02:51.8]} 11. Qe2 {[%clk
0:02:54.1]} 11... Nh5 {[%clk 0:02:49.5]} 12. Nd4 {[%clk 0:02:45]} 12... Nf4
{[%clk 0:02:48.7]} 13. Qf3 {[%clk 0:02:45]} 13... Ng6 {[%clk 0:02:43.9]} 14. Ne2
{[%clk 0:02:40.6]} 14... Nc5 {[%clk 0:02:41.3]} 15. Nf4 {[%clk 0:02:19.2]} 15...
Nxf4 {[%clk 0:02:28.1]} 16. Qxf4 {[%clk 0:02:17.6]} 16... Bg5 {[%clk 0:02:28.4]}
17. Qg3 {[%clk 0:02:14.4]} 17... e5 {[%clk 0:02:27.1]} 18. f4 {[%clk 0:01:49.2]}
18... exf4 {[%clk 0:02:28]} 19. Rxf4 {[%clk 0:01:48.9]} 19... Ne6 {[%clk
0:02:20.1]} 20. Rf2 {[%clk 0:01:42.3]} 20... Bh4 {[%clk 0:02:15.7]} 21. Qe3
{[%clk 0:01:28.2]} 21... Bxf2+ {[%clk 0:02:09.8]} 22. Qxf2 {[%clk 0:01:29.1]}
22... d5 {[%clk 0:02:07.4]} 23. Re1 {[%clk 0:01:24.4]} 23... h6 {[%clk
0:01:56.7]} 24. Qg3 {[%clk 0:01:23.5]} 24... Qg5 {[%clk 0:01:38.3]} 25. Qxg5
{[%clk 0:01:17.6]} 25... hxg5 {[%clk 0:01:39.2]} 26. exd5 {[%clk 0:01:17.1]}
26... Bxd5 {[%clk 0:01:39.3]} 27. Ne4 {[%clk 0:01:14.7]} 27... Rd8 {[%clk
0:01:30.7]} 28. Kf2 {[%clk 0:01:11.5]} 28... f6 {[%clk 0:01:21.2]} 29. Bxf6
{[%clk 0:01:02.4]} 29... gxf6 {[%clk 0:01:11.8]} 30. Nxf6+ {[%clk 0:01:01.7]}
30... Kf7 {[%clk 0:01:12.5]} 31. Ng4 {[%clk 0:00:49]} 31... Nd4 {[%clk
0:01:10.3]} 32. c4 {[%clk 0:00:45.7]} 32... Be6 {[%clk 0:01:08.1]} 33. Ne5+
{[%clk 0:00:45.8]} 33... Kf6 {[%clk 0:01:07.9]} 34. b4 {[%clk 0:00:42.5]} 34...
axb4 {[%clk 0:00:57.1]} 35. axb4 {[%clk 0:00:43.4]} 35... Ra8 {[%clk 0:00:55.2]}
36. Re4 {[%clk 0:00:34]} 36... Ra2+ {[%clk 0:00:54.9]} 37. Kg3 {[%clk
0:00:33.8]} 37... Nf5+ {[%clk 0:00:48.2]} 38. Kf3 {[%clk 0:00:31.8]} 38... Nh4+
{[%clk 0:00:47.9]} 39. Ke3 {[%clk 0:00:30.7]} 39... Nxg2+ {[%clk 0:00:45.6]} 40.
Kd4 {[%clk 0:00:31.3]} 40... Nh4 {[%clk 0:00:41.5]} 41. Nc6 {[%clk 0:00:21.2]}
41... Nf5+ {[%clk 0:00:38.1]} 42. Kc3 {[%clk 0:00:20.8]} 42... Rxh2 {[%clk
0:00:38.6]} 43. Nd8 {[%clk 0:00:20]} 43... Bd7 {[%clk 0:00:38.6]} 44. c5 {[%clk
0:00:20.3]} 44... bxc5 {[%clk 0:00:35.9]} 45. bxc5 {[%clk 0:00:21.2]} 45... Ng3
{[%clk 0:00:32.4]} 46. Re3 {[%clk 0:00:19.9]} 46... Ne2+ {[%clk 0:00:32.3]} 47.
Kc4 {[%clk 0:00:19.1]} 47... Nf4 {[%clk 0:00:32.3]} 48. c6 {[%clk 0:00:18.5]}
48... Be6+ {[%clk 0:00:31.6]} 49. Kc5 {[%clk 0:00:16.6]} 49... Rc2+ {[%clk
0:00:31.2]} 50. Kd4 {[%clk 0:00:17.2]} 50... Ne2+ {[%clk 0:00:28.5]} 51. Ke4
{[%clk 0:00:17.7]} 51... Bf5+ {[%clk 0:00:29.1]} 52. Kf3 {[%clk 0:00:17.4]}
52... g4+ {[%clk 0:00:27.4]} 53. Kg2 {[%clk 0:00:15.9]} 53... Nf4+ {[%clk
0:00:26.7]} 54. Kg3 {[%clk 0:00:15.5]} 54... Nh5+ {[%clk 0:00:26.6]} 55. Kh4
{[%clk 0:00:14.9]} 55... Rh2+ {[%clk 0:00:27.3]} 56. Rh3 {[%clk 0:00:15.1]}
56... Rxh3# {[%clk 0:00:28.2]} 0-1

[Event "Late-Titled-Tuesday-Blitz-May-07-2024"]
[Site "Chess.com"]
[Date "2024.05.07"]
[Round "4"]
[White "LUISMIGUELOV"]
[Black "RantomOpening"]
[Result "0-1"]
[WhiteElo "2210"]
[BlackElo "2490"]
[TimeControl "180+1"]
[EndTime "14:39:04 PDT"]
[Termination "RantomOpening won on time"]

1. e4 {[%clk 0:03:00.9]} 1... c6 {[%clk 0:03:00]} 2. d4 {[%clk 0:02:56.6]} 2...
d5 {[%clk 0:02:59.9]} 3. Nd2 {[%clk 0:02:55.3]} 3... e6 {[%clk 0:02:58.9]} 4. c3
{[%clk 0:02:53.4]} 4... b5 {[%clk 0:02:59]} 5. Bd3 {[%clk 0:02:52.9]} 5... a6
{[%clk 0:02:59.3]} 6. f4 {[%clk 0:02:49]} 6... Nf6 {[%clk 0:02:58.7]} 7. e5
{[%clk 0:02:45.6]} 7... Nfd7 {[%clk 0:02:58.9]} 8. Ngf3 {[%clk 0:02:44.7]} 8...
c5 {[%clk 0:02:59.3]} 9. O-O {[%clk 0:02:35.5]} 9... Nc6 {[%clk 0:02:59]} 10. a4
{[%clk 0:02:34.3]} 10... c4 {[%clk 0:02:56.1]} 11. Bc2 {[%clk 0:02:32.6]} 11...
b4 {[%clk 0:02:55.7]} 12. cxb4 {[%clk 0:02:23.4]} 12... Nxb4 {[%clk 0:02:56.6]}
13. b3 {[%clk 0:02:14.9]} 13... Nxc2 {[%clk 0:02:52.7]} 14. Qxc2 {[%clk
0:02:14.5]} 14... cxb3 {[%clk 0:02:53.2]} 15. Nxb3 {[%clk 0:02:13.6]} 15... Be7
{[%clk 0:02:51]} 16. Ba3 {[%clk 0:02:13.1]} 16... O-O {[%clk 0:02:49.7]} 17.
Bxe7 {[%clk 0:02:12.6]} 17... Qxe7 {[%clk 0:02:50.6]} 18. Rfc1 {[%clk
0:02:06.3]} 18... Nb6 {[%clk 0:02:50.3]} 19. Nc5 {[%clk 0:02:03.5]} 19... Nc4
{[%clk 0:02:49.6]} 20. Nd2 {[%clk 0:02:00.1]} 20... Ne3 {[%clk 0:02:49.2]} 21.
Qd3 {[%clk 0:01:56.9]} 21... Nf5 {[%clk 0:02:49.2]} 22. a5 {[%clk 0:01:48.9]}
22... f6 {[%clk 0:02:43.4]} 23. exf6 {[%clk 0:01:47.2]} 23... Qxf6 {[%clk
0:02:41]} 24. Nf3 {[%clk 0:01:46.3]} 24... Nd6 {[%clk 0:02:35.6]} 25. g3 {[%clk
0:01:43.6]} 25... Bb7 {[%clk 0:02:13.1]} 26. Rab1 {[%clk 0:01:41.3]} 26... Bc6
{[%clk 0:02:12.7]} 27. Rb6 {[%clk 0:01:33.9]} 27... Bb5 {[%clk 0:02:12.5]} 28.
Qe3 {[%clk 0:01:33.8]} 28... Nc4 {[%clk 0:02:12.9]} 29. Qxe6+ {[%clk 0:01:30.1]}
29... Qxe6 {[%clk 0:02:07]} 30. Rxe6 {[%clk 0:01:29.8]} 30... Nxa5 {[%clk
0:02:07.5]} 31. Ne5 {[%clk 0:01:20.6]} 31... Nc4 {[%clk 0:02:06.9]} 32. Ra1
{[%clk 0:01:15.4]} 32... a5 {[%clk 0:01:58.1]} 33. Re7 {[%clk 0:01:00.8]} 33...
Rfe8 {[%clk 0:01:40]} 34. Rb7 {[%clk 0:00:55.1]} 34... Rab8 {[%clk 0:01:38.4]}
35. Ra7 {[%clk 0:00:47.4]} 35... Ra8 {[%clk 0:01:36.8]} 36. Rb7 {[%clk
0:00:44.5]} 36... Reb8 {[%clk 0:01:36.7]} 37. Rc7 {[%clk 0:00:40.6]} 37... Rb6
{[%clk 0:01:26.3]} 38. Ned7 {[%clk 0:00:37]} 38... Rd6 {[%clk 0:01:22.8]} 39.
Ne5 {[%clk 0:00:28.5]} 39... a4 {[%clk 0:01:21.1]} 40. Nb7 {[%clk 0:00:25.3]}
40... Rb6 {[%clk 0:01:17.6]} 41. Nc5 {[%clk 0:00:24.1]} 41... a3 {[%clk
0:01:17.5]} 42. Ncd7 {[%clk 0:00:22.8]} 42... Bxd7 {[%clk 0:01:12]} 43. Nxd7
{[%clk 0:00:22]} 43... Rb2 {[%clk 0:01:03.7]} 44. Ne5 {[%clk 0:00:10.3]} 44...
a2 {[%clk 0:01:01.7]} 45. Nxc4 {[%clk 0:00:10.3]} 45... Rb1+ {[%clk 0:01:01.7]}
46. Kg2 {[%clk 0:00:07.8]} 46... dxc4 {[%clk 0:01:00.4]} 47. Rxa2 {[%clk
0:00:05.6]} 47... Rxa2+ {[%clk 0:00:59.8]} 48. Kh3 {[%clk 0:00:04.4]} 48... Rc2
{[%clk 0:00:59.7]} 49. d5 {[%clk 0:00:03.5]} 49... Rd1 {[%clk 0:01:00.6]} 50.
Rd7 {[%clk 0:00:02.7]} 50... c3 {[%clk 0:01:00.4]} 51. d6 {[%clk 0:00:03.1]}
51... Rcd2 {[%clk 0:01:01.3]} 52. Rc7 {[%clk 0:00:01.8]} 52... c2 {[%clk
0:01:01.5]} 53. d7 {[%clk 0:00:01.4]} 53... c1=Q {[%clk 0:01:00.1]} 54. Rc8+
{[%clk 0:00:01.5]} 54... Kf7 {[%clk 0:00:59.6]} 0-1

[Event "Late-Titled-Tuesday-Blitz-May-07-2024"]
[Site "Chess.com"]
[Date "2024.05.07"]
[Round "4"]
[White "gmcorrales"]
[Black "NelsonLinda"]
[Result "1-0"]
[WhiteElo "2883"]
[BlackElo "2615"]
[TimeControl "180+1"]
[EndTime "14:39:07 PDT"]
[Termination "gmcorrales won by resignation"]

1. e4 {[%clk 0:02:33.7]} 1... c5 {[%clk 0:02:59.9]} 2. Nf3 {[%clk 0:02:27.1]}
2... e6 {[%clk 0:03:00.2]} 3. d4 {[%clk 0:02:22.3]} 3... cxd4 {[%clk 0:03:01.1]}
4. Nxd4 {[%clk 0:01:59.3]} 4... Nf6 {[%clk 0:03:01.5]} 5. Nc3 {[%clk 0:01:55.3]}
5... d6 {[%clk 0:03:01.9]} 6. Be3 {[%clk 0:01:31.1]} 6... Be7 {[%clk 0:03:02]}
7. f4 {[%clk 0:01:31.3]} 7... O-O {[%clk 0:03:01.7]} 8. Qf3 {[%clk 0:01:31.9]}
8... e5 {[%clk 0:03:02.3]} 9. Nb3 {[%clk 0:01:30.8]} 9... Nc6 {[%clk 0:02:57.9]}
10. h3 {[%clk 0:01:31]} 10... exf4 {[%clk 0:02:55.1]} 11. Bxf4 {[%clk
0:01:31.9]} 11... Ne5 {[%clk 0:02:55.4]} 12. Qe2 {[%clk 0:01:20.9]} 12... Be6
{[%clk 0:02:39.9]} 13. O-O-O {[%clk 0:01:20.6]} 13... Nfd7 {[%clk 0:02:35.9]}
14. Nd4 {[%clk 0:01:20.2]} 14... a6 {[%clk 0:02:31.6]} 15. Kb1 {[%clk
0:01:20.3]} 15... Rc8 {[%clk 0:02:27.4]} 16. Qe1 {[%clk 0:01:17.5]} 16... Qb6
{[%clk 0:02:07]} 17. Nf5 {[%clk 0:01:13.3]} 17... Bf6 {[%clk 0:01:54.4]} 18.
Rxd6 {[%clk 0:01:11.6]} 18... Rc6 {[%clk 0:01:52.8]} 19. Be3 {[%clk 0:01:00]}
19... Qc7 {[%clk 0:01:18.4]} 20. Rxc6 {[%clk 0:00:59.7]} 20... Qxc6 {[%clk
0:01:19]} 21. Bd4 {[%clk 0:00:57.4]} 21... g6 {[%clk 0:01:07.9]} 22. Ne3 {[%clk
0:00:44]} 22... Rd8 {[%clk 0:01:04]} 23. Ncd5 {[%clk 0:00:43.8]} 23... Qd6
{[%clk 0:00:50.2]} 24. Be2 {[%clk 0:00:39.2]} 24... Bg7 {[%clk 0:00:46]} 25. Qh4
{[%clk 0:00:36.8]} 25... Nc5 {[%clk 0:00:32.1]} 26. Rd1 {[%clk 0:00:36.5]} 26...
Nxe4 {[%clk 0:00:20.5]} 27. Bxe5 {[%clk 0:00:22.9]} 27... Qxe5 {[%clk
0:00:20.2]} 28. Qxd8+ {[%clk 0:00:22.1]} 28... Bf8 {[%clk 0:00:20]} 29. Nf6+
{[%clk 0:00:13.3]} 29... Kg7 {[%clk 0:00:20]} 30. Ne8+ {[%clk 0:00:13.7]} 30...
Kh6 {[%clk 0:00:20.1]} 31. Qd4 {[%clk 0:00:14.6]} 31... Qf4 {[%clk 0:00:12.7]}
32. Bf3 {[%clk 0:00:14.5]} 32... f5 {[%clk 0:00:08.8]} 33. Bxe4 {[%clk
0:00:14.5]} 33... fxe4 {[%clk 0:00:09.1]} 34. Rf1 {[%clk 0:00:15]} 34... Qh2
{[%clk 0:00:01.6]} 35. Rxf8 {[%clk 0:00:14.7]} 35... Qg1+ {[%clk 0:00:02.2]} 36.
Rf1 {[%clk 0:00:14.5]} 36... Qxe3 {[%clk 0:00:02.7]} 37. Qxe3+ {[%clk
0:00:14.4]} 1-0

[Event "Late-Titled-Tuesday-Blitz-May-07-2024"]
[Site "Chess.com"]
[Date "2024.05.07"]
[Round "4"]
[White "TheDevilAdvisoR"]
[Black "GothamChess"]
[Result "0-1"]
[WhiteElo "2476"]
[BlackElo "2703"]
[TimeControl "180+1"]
[EndTime "14:39:07 PDT"]
[Termination "GothamChess won on time"]

1. Nf3 {[%clk 0:03:00]} 1... g6 {[%clk 0:02:57.1]} 2. g3 {[%clk 0:02:59.4]} 2...
Bg7 {[%clk 0:02:57.8]} 3. Bg2 {[%clk 0:02:59.9]} 3... d6 {[%clk 0:02:58.6]} 4.
O-O {[%clk 0:02:59.3]} 4... Bd7 {[%clk 0:02:59]} 5. d3 {[%clk 0:02:58.8]} 5...
Qc8 {[%clk 0:02:59.7]} 6. Re1 {[%clk 0:02:58.9]} 6... Bh3 {[%clk 0:03:00.2]} 7.
Bh1 {[%clk 0:02:59.4]} 7... h5 {[%clk 0:03:00.9]} 8. e4 {[%clk 0:02:59.3]} 8...
h4 {[%clk 0:03:01.5]} 9. Nxh4 {[%clk 0:02:59.7]} 9... Bf6 {[%clk 0:03:01.6]} 10.
Nf3 {[%clk 0:02:59.5]} 10... Nc6 {[%clk 0:03:02.2]} 11. c3 {[%clk 0:02:59.3]}
11... Qg4 {[%clk 0:02:43.2]} 12. Nfd2 {[%clk 0:02:41.6]} 12... Qd7 {[%clk
0:02:42]} 13. d4 {[%clk 0:02:38.3]} 13... e5 {[%clk 0:02:41.3]} 14. d5 {[%clk
0:02:35.9]} 14... Nce7 {[%clk 0:02:41.3]} 15. Nc4 {[%clk 0:02:29.7]} 15... g5
{[%clk 0:02:26.5]} 16. Ne3 {[%clk 0:02:21.1]} 16... Ng6 {[%clk 0:02:25.6]} 17.
Bf3 {[%clk 0:02:18.6]} 17... Nh6 {[%clk 0:02:16.3]} 18. c4 {[%clk 0:01:53.3]}
18... O-O {[%clk 0:01:45.9]} 19. Nc3 {[%clk 0:01:47.4]} 19... Kh7 {[%clk
0:01:45.2]} 20. Bg2 {[%clk 0:01:42.6]} 20... Nf4 {[%clk 0:01:36.6]} 21. Bf3
{[%clk 0:01:02.2]} 21... Rg8 {[%clk 0:01:33]} 22. Kh1 {[%clk 0:01:01.4]} 22...
g4 {[%clk 0:01:27.8]} 23. Be2 {[%clk 0:01:00.5]} 23... Rg5 {[%clk 0:01:19.3]}
24. Qa4 {[%clk 0:00:40.3]} 24... Qd8 {[%clk 0:01:05.3]} 25. gxf4 {[%clk
0:00:33]} 25... exf4 {[%clk 0:01:02.3]} 26. Nf5 {[%clk 0:00:32.7]} 26... Be5
{[%clk 0:00:56.9]} 27. Bd3 {[%clk 0:00:20.3]} 27... Rh5 {[%clk 0:00:28.9]} 28.
Ne2 {[%clk 0:00:19.5]} 28... Qg5 {[%clk 0:00:23.3]} 29. Neg3 {[%clk 0:00:18.8]}
29... Rg8 {[%clk 0:00:13.2]} 30. Qd1 {[%clk 0:00:17.5]} 30... Rh4 {[%clk
0:00:10.5]} 31. Nxh4 {[%clk 0:00:16]} 31... Qxh4 {[%clk 0:00:11.4]} 32. Bd2
{[%clk 0:00:13.4]} 32... fxg3 {[%clk 0:00:04.8]} 33. fxg3 {[%clk 0:00:13.6]}
33... Bxg3 {[%clk 0:00:04.9]} 34. Re2 {[%clk 0:00:10.1]} 34... Be5 {[%clk
0:00:03.6]} 35. Qe1 {[%clk 0:00:09.4]} 35... g3 {[%clk 0:00:04]} 0-1

[Event "Late-Titled-Tuesday-Blitz-May-07-2024"]
[Site "Chess.com"]
[Date "2024.05.07"]
[Round "4"]
[White "PNEPaul"]
[Black "Arteler"]
[Result "0-1"]
[WhiteElo "1944"]
[BlackElo "2288"]
[TimeControl "180+1"]
[EndTime "14:39:07 PDT"]
[Termination "Arteler won on time"]

1. e4 {[%clk 0:01:39.2]} 1... e6 {[%clk 0:02:58.4]} 2. d4 {[%clk 0:01:38.6]}
2... d5 {[%clk 0:02:58.5]} 3. e5 {[%clk 0:01:38.9]} 3... c5 {[%clk 0:02:58.4]}
4. Qg4 {[%clk 0:01:38.9]} 4... Qb6 {[%clk 0:02:51.5]} 5. Nf3 {[%clk 0:01:38.8]}
5... Nc6 {[%clk 0:02:50.8]} 6. Bd3 {[%clk 0:01:38.7]} 6... cxd4 {[%clk
0:02:47.3]} 7. O-O {[%clk 0:01:33.8]} 7... Nge7 {[%clk 0:02:31.8]} 8. Qg3 {[%clk
0:01:33.5]} 8... Ng6 {[%clk 0:02:30.1]} 9. a3 {[%clk 0:01:33.5]} 9... Qc7 {[%clk
0:02:18.3]} 10. Re1 {[%clk 0:01:32.6]} 10... Be7 {[%clk 0:02:15.9]} 11. h4
{[%clk 0:01:32.4]} 11... Bc5 {[%clk 0:01:48.3]} 12. h5 {[%clk 0:01:29.6]} 12...
Nge7 {[%clk 0:01:48.3]} 13. Qxg7 {[%clk 0:01:28.3]} 13... Rg8 {[%clk 0:01:29.8]}
14. Qxh7 {[%clk 0:01:28.1]} 14... Bd7 {[%clk 0:00:45.1]} 15. h6 {[%clk
0:01:12.8]} 15... O-O-O {[%clk 0:00:43.9]} 16. Qxf7 {[%clk 0:01:12.6]} 16...
Rdf8 {[%clk 0:00:43.8]} 17. Qh5 {[%clk 0:01:12.5]} 17... Be8 {[%clk 0:00:38.9]}
18. Qh3 {[%clk 0:01:02.5]} 18... Bd7 {[%clk 0:00:36.6]} 19. h7 {[%clk
0:00:57.4]} 19... Rh8 {[%clk 0:00:36.4]} 20. b4 {[%clk 0:00:52.9]} 20... Bb6
{[%clk 0:00:35.5]} 21. Bg5 {[%clk 0:00:35]} 21... Nf5 {[%clk 0:00:29.7]} 22.
Bxf5 {[%clk 0:00:25]} 22... Rxf5 {[%clk 0:00:28.2]} 23. Bf6 {[%clk 0:00:19.4]}
23... Rxf6 {[%clk 0:00:20.4]} 24. exf6 {[%clk 0:00:18.6]} 24... Qd8 {[%clk
0:00:20.5]} 25. Qh6 {[%clk 0:00:16]} 25... Bc7 {[%clk 0:00:09.9]} 26. Ng5 {[%clk
0:00:14.2]} 26... Bf4 {[%clk 0:00:08.7]} 27. g3 {[%clk 0:00:06.4]} 27... Bxg5
{[%clk 0:00:08.4]} 28. Qxg5 {[%clk 0:00:06.3]} 28... Rxh7 {[%clk 0:00:08.5]} 29.
Nd2 {[%clk 0:00:02.1]} 29... Qh8 {[%clk 0:00:04.1]} 30. Kf1 {[%clk 0:00:00.3]}
30... Rh1+ {[%clk 0:00:03.5]} 31. Ke2 {[%clk 0:00:00.2]} 31... Rxe1+ {[%clk
0:00:03]} 32. Kxe1 {[%clk 0:00:00.3]} 32... Qh1+ {[%clk 0:00:02.6]} 33. Ke2
{[%clk 0:00:00.2]} 33... Qxa1 {[%clk 0:00:02.3]} 34. f7 {[%clk 0:00:00.4]} 34...
d3+ {[%clk 0:00:01.4]} 0-1

[Event "Late-Titled-Tuesday-Blitz-May-07-2024"]
[Site "Chess.com"]
[Date "2024.05.07"]
[Round "4"]
[White "laskakid"]
[Black "frequentblunders"]
[Result "0-1"]
[WhiteElo "2383"]
[BlackElo "2209"]
[TimeControl "180+1"]
[EndTime "14:39:08 PDT"]
[Termination "frequentblunders won on time"]

1. e4 {[%clk 0:03:00.9]} 1... e6 {[%clk 0:02:59.6]} 2. d3 {[%clk 0:03:00.5]}
2... c5 {[%clk 0:03:00.5]} 3. Nf3 {[%clk 0:02:59.6]} 3... d5 {[%clk 0:03:01.4]}
4. Qe2 {[%clk 0:02:57.5]} 4... Be7 {[%clk 0:03:00.9]} 5. g3 {[%clk 0:02:57]}
5... Nf6 {[%clk 0:02:59.4]} 6. Bg2 {[%clk 0:02:56.9]} 6... O-O {[%clk
0:02:59.7]} 7. O-O {[%clk 0:02:56]} 7... b5 {[%clk 0:03:00.3]} 8. e5 {[%clk
0:02:46.6]} 8... Nfd7 {[%clk 0:02:59.6]} 9. c4 {[%clk 0:02:44]} 9... bxc4 {[%clk
0:02:56]} 10. dxc4 {[%clk 0:02:44.1]} 10... Nb6 {[%clk 0:02:53.4]} 11. cxd5
{[%clk 0:02:28.7]} 11... exd5 {[%clk 0:02:54.3]} 12. Nc3 {[%clk 0:02:28.5]}
12... Nc6 {[%clk 0:02:53.4]} 13. Rd1 {[%clk 0:02:26.4]} 13... Bg4 {[%clk
0:02:47.7]} 14. h3 {[%clk 0:02:23.8]} 14... Nd4 {[%clk 0:02:47.3]} 15. Qd3
{[%clk 0:02:15.4]} 15... Nxf3+ {[%clk 0:02:29.1]} 16. Bxf3 {[%clk 0:02:14.8]}
16... Bxf3 {[%clk 0:02:20.6]} 17. Qxf3 {[%clk 0:02:14.4]} 17... d4 {[%clk
0:02:21.2]} 18. Ne4 {[%clk 0:02:08.7]} 18... Nc4 {[%clk 0:02:17.2]} 19. Qe2
{[%clk 0:01:35.5]} 19... Nxe5 {[%clk 0:02:13.4]} 20. Nxc5 {[%clk 0:01:35.7]}
20... Bxc5 {[%clk 0:02:09.7]} 21. Qxe5 {[%clk 0:01:35.7]} 21... Bb6 {[%clk
0:02:00.2]} 22. Bg5 {[%clk 0:01:12.2]} 22... Qd7 {[%clk 0:01:54.3]} 23. Qe4
{[%clk 0:00:50.4]} 23... Qxh3 {[%clk 0:01:50.3]} 24. a4 {[%clk 0:00:44.4]} 24...
h6 {[%clk 0:01:48.8]} 25. Bf4 {[%clk 0:00:42.3]} 25... Rfe8 {[%clk 0:01:39.8]}
26. Qf3 {[%clk 0:00:35.2]} 26... Rad8 {[%clk 0:01:30.4]} 27. Rd3 {[%clk
0:00:30.7]} 27... g5 {[%clk 0:01:25.9]} 28. Bd2 {[%clk 0:00:28.9]} 28... a5
{[%clk 0:01:11.5]} 29. b4 {[%clk 0:00:27.3]} 29... axb4 {[%clk 0:01:12.4]} 30.
Bxb4 {[%clk 0:00:27.1]} 30... Qe6 {[%clk 0:01:01.4]} 31. a5 {[%clk 0:00:24.7]}
31... Ba7 {[%clk 0:01:00.2]} 32. a6 {[%clk 0:00:21]} 32... Qe2 {[%clk
0:00:54.1]} 33. Qxe2 {[%clk 0:00:10.2]} 33... Rxe2 {[%clk 0:00:55]} 34. Rad1
{[%clk 0:00:08.4]} 34... Ra2 {[%clk 0:00:52.9]} 35. Ra3 {[%clk 0:00:07.1]} 35...
Rxa3 {[%clk 0:00:48]} 36. Bxa3 {[%clk 0:00:07.4]} 36... d3 {[%clk 0:00:48.9]}
37. Kf1 {[%clk 0:00:05]} 37... f5 {[%clk 0:00:48.2]} 38. f3 {[%clk 0:00:04.3]}
38... Kf7 {[%clk 0:00:47.7]} 39. Bb2 {[%clk 0:00:02.3]} 39... Ke6 {[%clk
0:00:46.8]} 40. Bc3 {[%clk 0:00:02.6]} 40... Rd6 {[%clk 0:00:45.8]} 41. Re1+
{[%clk 0:00:02.5]} 41... Kd5 {[%clk 0:00:45.8]} 42. Rd1 {[%clk 0:00:02.6]} 42...
Kc4 {[%clk 0:00:45.4]} 43. Bd2 {[%clk 0:00:02.4]} 43... Rxa6 {[%clk 0:00:44.9]}
44. Kg2 {[%clk 0:00:02.4]} 44... Ra2 {[%clk 0:00:44.5]} 45. g4 {[%clk
0:00:02.6]} 45... f4 {[%clk 0:00:44.4]} 46. Kf1 {[%clk 0:00:02.8]} 46... Be3
{[%clk 0:00:43.5]} 47. Be1 {[%clk 0:00:02.3]} 47... d2 {[%clk 0:00:39.2]} 48.
Bf2 {[%clk 0:00:02.5]} 48... Kd3 {[%clk 0:00:39.1]} 49. Bg1 {[%clk 0:00:01.5]}
49... Rc2 {[%clk 0:00:39.2]} 50. Bh2 {[%clk 0:00:01.1]} 50... Rc1 {[%clk
0:00:38.5]} 51. Kg2 {[%clk 0:00:01.2]} 51... Rxd1 {[%clk 0:00:39.1]} 0-1

[Event "Late-Titled-Tuesday-Blitz-May-07-2024"]
[Site "Chess.com"]
[Date "2024.05.07"]
[Round "4"]
[White "FelixBlohberger"]
[Black "KuzubovYuriy"]
[Result "0-1"]
[WhiteElo "2739"]
[BlackElo "2952"]
[TimeControl "180+1"]
[EndTime "14:39:10 PDT"]
[Termination "KuzubovYuriy won by resignation"]

1. Nf3 {[%clk 0:03:00.9]} 1... d5 {[%clk 0:03:00]} 2. d4 {[%clk 0:02:59.5]} 2...
Nf6 {[%clk 0:02:59.7]} 3. c4 {[%clk 0:03:00]} 3... e6 {[%clk 0:03:00]} 4. Nc3
{[%clk 0:03:00.3]} 4... Nbd7 {[%clk 0:03:00.2]} 5. cxd5 {[%clk 0:02:55.2]} 5...
exd5 {[%clk 0:03:01.1]} 6. Bf4 {[%clk 0:02:54.7]} 6... c6 {[%clk 0:02:55.4]} 7.
e3 {[%clk 0:02:54.6]} 7... Nh5 {[%clk 0:02:55]} 8. Bg5 {[%clk 0:02:53.2]} 8...
Be7 {[%clk 0:02:55.1]} 9. Bxe7 {[%clk 0:02:53.6]} 9... Qxe7 {[%clk 0:02:56]} 10.
Bd3 {[%clk 0:02:53.4]} 10... Nf4 {[%clk 0:02:53.9]} 11. O-O {[%clk 0:02:44]}
11... Nxd3 {[%clk 0:02:53.4]} 12. Qxd3 {[%clk 0:02:44.9]} 12... O-O {[%clk
0:02:52.9]} 13. a3 {[%clk 0:02:39.6]} 13... a5 {[%clk 0:02:46.4]} 14. e4 {[%clk
0:02:32.9]} 14... dxe4 {[%clk 0:02:44.5]} 15. Qxe4 {[%clk 0:02:33]} 15... Qxe4
{[%clk 0:02:35.9]} 16. Nxe4 {[%clk 0:02:33.9]} 16... Nb6 {[%clk 0:02:35.5]} 17.
Nc5 {[%clk 0:02:20.5]} 17... Nd5 {[%clk 0:02:33]} 18. Rfe1 {[%clk 0:02:12.1]}
18... b6 {[%clk 0:02:26.4]} 19. Nd3 {[%clk 0:02:09.2]} 19... f6 {[%clk
0:02:25.8]} 20. Rac1 {[%clk 0:02:07.7]} 20... Bd7 {[%clk 0:02:23.1]} 21. h3
{[%clk 0:02:04.9]} 21... Rfe8 {[%clk 0:02:20]} 22. Nd2 {[%clk 0:01:53.9]} 22...
Bf5 {[%clk 0:01:59]} 23. Rxe8+ {[%clk 0:01:46.2]} 23... Rxe8 {[%clk 0:01:59.9]}
24. Ne1 {[%clk 0:01:32.4]} 24... Re6 {[%clk 0:01:59.1]} 25. Nef3 {[%clk
0:01:18.1]} 25... Nf4 {[%clk 0:01:48.3]} 26. Re1 {[%clk 0:00:25.8]} 26... Rxe1+
{[%clk 0:01:35.5]} 27. Nxe1 {[%clk 0:00:26.7]} 27... Kf7 {[%clk 0:01:21.2]} 28.
Nc4 {[%clk 0:00:21.7]} 28... Nd5 {[%clk 0:01:21]} 29. Kf1 {[%clk 0:00:18.7]}
29... g5 {[%clk 0:01:18.4]} 30. Ke2 {[%clk 0:00:18.2]} 30... Ke6 {[%clk
0:01:17.3]} 31. Ne3 {[%clk 0:00:16.6]} 31... h5 {[%clk 0:01:15.2]} 32. Nd3
{[%clk 0:00:11.4]} 32... Nxe3 {[%clk 0:00:59.6]} 33. Kxe3 {[%clk 0:00:12.3]}
33... Kd5 {[%clk 0:00:57.1]} 34. b3 {[%clk 0:00:11.5]} 34... h4 {[%clk
0:00:43.7]} 35. Nc1 {[%clk 0:00:10.9]} 35... Bc2 {[%clk 0:00:39]} 36. Kd2 {[%clk
0:00:09.3]} 36... Be4 {[%clk 0:00:34.7]} 37. f3 {[%clk 0:00:09.1]} 37... Bg6
{[%clk 0:00:34.8]} 38. Ke3 {[%clk 0:00:06.7]} 38... Bf7 {[%clk 0:00:34.4]} 39.
Ne2 {[%clk 0:00:03.8]} 39... Kd6 {[%clk 0:00:31.3]} 40. b4 {[%clk 0:00:02.4]}
40... axb4 {[%clk 0:00:30.7]} 41. axb4 {[%clk 0:00:03.3]} 41... Kd5 {[%clk
0:00:30]} 42. Kd3 {[%clk 0:00:03.4]} 42... Bg6+ {[%clk 0:00:24.7]} 43. Kc3
{[%clk 0:00:03.8]} 43... Bf5 {[%clk 0:00:24.2]} 44. Nc1 {[%clk 0:00:02.8]} 44...
Bc8 {[%clk 0:00:22.6]} 45. Nb3 {[%clk 0:00:01.9]} 45... Ba6 {[%clk 0:00:21.9]}
46. Nd2 {[%clk 0:00:02.5]} 46... f5 {[%clk 0:00:21.4]} 47. Nb3 {[%clk
0:00:01.5]} 47... Bf1 {[%clk 0:00:21]} 48. Nd2 {[%clk 0:00:01]} 48... Bxg2
{[%clk 0:00:21]} 0-1